bitfinex/quotes_ETHUSD_20250529
["timestamp","ask_amount","ask_price","bid_price","bid_amount"]
[1748533234646,0.9239,2648.6,2648.3,3.77590062]
[1748533235170,0.9533,2648.9,2647.7,0.2656508]
[1748533235487,4.081,2648.8,2648.6,3.7755166]
[1748533235637,0.9533,2648.9,2648.6,3.77557955]
[1748533235839,0.9533,2648.9,2648.6,3.77551395]
[1748533236040,0.9538,2649.2,2648.6,3.77551395]
[1748533236333,4.4408836,2649.1,2648.7,3.77534622]
[1748533236559,0.3558836,2649.0,2648.6,3.77551395]
[1748533236747,4.085,2649.1,2648.7,3.77537375]
[1748533236947,0.85953038,2649.0,2648.7,3.77537375]
[1748533237169,0.85953038,2649.0,2648.8,3.77529447]
[1748533237170,4.082,2649.0,2648.8,3.77529447]
[1748533237359,4.082,2649.0,2648.9,3.77515194]
[1748533237567,0.9538,2649.2,2648.8,4.14845242]
[1748533237745,4.08,2649.1,2648.9,3.7750736]
[1748533237939,4.08,2649.1,2648.7,3.77537197]
[1748533237940,0.50338,2649.0,2648.7,3.77537197]
[1748533238139,0.50338,2649.0,2648.6,3.77553662]
[1748533238457,0.50338,2649.0,2648.7,3.775437]
[1748533238861,0.50338,2649.0,2648.8,3.77528337]
[1748533239251,0.50338,2649.0,2648.9,3.77515194]
[1748533239638,0.9538,2649.2,2649.1,3.77486693]
[1748533239840,0.9599,2649.5,2649.1,3.77486693]
[1748533240046,4.076,2649.3,2649.1,3.77486693]
[1748533240249,4.075,2649.3,2649.1,3.77474889]
[1748533240778,4.075,2649.3,2649.1,3.77479668]
[1748533241079,0.4075,2649.2,2649.1,3.77479668]
[1748533241252,4.34592725,2649.7,2649.3,3.77450714]
[1748533241451,0.35513403,2649.6,2648.6,0.37694548]
[1748533241790,4.073,2649.5,2649.4,3.77443949]
[1748533241987,0.47010613,2649.6,2649.3,3.77451973]
[1748533242186,4.54210613,2649.6,2649.3,3.77451973]
[1748533242373,4.54110613,2649.6,2649.4,3.77430089]
[1748533242578,4.54110613,2649.6,2649.5,3.77429703]
[1748533243087,0.47010613,2649.6,2649.5,4.15146895]
[1748533243289,2.94192725,2649.7,2649.6,3.77415458]
[1748533243589,2.94192725,2649.7,2649.5,3.77421855]
[1748533244087,0.02,2649.9,2649.8,3.77386972]
[1748533244401,0.02,2649.9,2649.6,3.77404861]
[1748533244402,0.02,2649.9,2649.7,3.77393918]
[1748533244696,0.4289,2649.9,2649.7,3.77393918]
[1748533244858,0.4289,2649.9,2649.4,10.0]
[1748533245057,0.4289,2649.9,2649.3,3.7745232]
[1748533245259,0.4289,2649.9,2649.8,3.77386972]
[1748533245593,0.02,2649.9,2649.8,3.77386972]
[1748533246259,0.02,2649.9,2649.8,4.14183361]
[1748533249312,0.9656,2649.8,2649.2,3.77458486]
[1748533249511,0.9656,2649.8,2649.1,3.77478353]
[1748533249714,0.9671,2649.6,2649.1,3.77478353]
[1748533250011,4.097,2649.5,2649.2,3.77472331]
[1748533250217,4.097,2649.5,2649.1,3.77479393]
[1748533250419,4.097,2649.5,2649.2,3.77468286]
[1748533250717,4.097,2649.5,2648.6,2.013204]
[1748533250922,0.50641,2649.4,2649.2,3.77459113]
[1748533251277,0.50641,2649.4,2649.1,3.7747911]
[1748533251672,0.50641,2649.4,2649.2,3.77471376]
[1748533251877,0.50641,2649.4,2649.1,3.77476108]
[1748533252183,0.460341,2649.3,2648.7,3.775437]
[1748533252595,0.460341,2649.3,2648.9,3.77508027]
[1748533252596,0.9232,2649.2,2648.9,3.77508027]
[1748533253390,0.9232,2649.2,2649.0,3.77499087]
[1748533254198,0.9232,2649.2,2648.8,3.77523372]
[1748533254403,0.9232,2649.2,2649.0,3.77499314]
[1748533254616,0.9232,2649.2,2648.5,3.77568543]
[1748533254791,0.9232,2649.2,2649.0,3.77496508]
[1748533255191,0.9232,2649.2,2648.5,3.28029737]
[1748533255527,0.9232,2649.2,2649.0,3.77500653]
[1748533255693,0.9232,2649.2,2648.9,3.77513107]
[1748533256295,0.9232,2649.2,2649.0,3.77493099]
[1748533256594,4.082,2649.2,2648.5,0.38582977]
[1748533256792,4.6306641,2649.2,2649.0,3.77500213]
[1748533257206,4.6306641,2649.2,2649.1,3.77486693]
[1748533257922,4.6306641,2649.2,2649.0,3.7749461]
[1748533258136,4.6306641,2649.2,2648.6,3.77557408]
[1748533258137,4.6306641,2649.2,2648.8,3.77529372]
[1748533258421,0.46306641,2649.1,2648.8,3.77523675]
[1748533258581,0.46306641,2649.1,2648.9,3.77508581]
[1748533258782,4.082,2649.2,2648.5,4.15059804]
[1748533259080,4.082,2649.2,2649.0,3.77494887]
[1748533259319,4.082,2649.2,2649.1,3.77486693]
[1748533259676,4.079,2649.2,2649.1,3.77486693]
[1748533259880,4.079,2649.2,2649.0,3.77493353]
[1748533260115,4.079,2649.2,2648.9,3.77509822]
[1748533260288,4.079,2649.2,2648.2,3.77614964]
[1748533260489,4.58133,2649.2,2648.2,3.77614983]
[1748533260682,4.58133,2649.2,2648.5,3.77567619]
[1748533260882,4.58133,2649.2,2648.9,3.77501928]
[1748533261125,4.58133,2649.2,2649.1,3.77486693]
[1748533261622,4.57833,2649.2,2649.1,3.77486693]
[1748533261824,4.076,2649.2,2649.1,3.77486693]
[1748533262598,0.9443,2649.4,2648.8,3.77528746]
[1748533262921,0.9443,2649.4,2649.3,3.77458196]
[1748533263096,0.9443,2649.4,2649.1,3.77474482]
[1748533263097,0.9443,2649.4,2649.2,3.7746433]
[1748533263295,5.0173,2649.4,2649.2,3.7746433]
[1748533264108,4.07,2649.3,2649.0,3.77492556]
[1748533264289,4.07,2649.3,2649.2,3.77472444]
[1748533265096,0.9443,2649.4,2649.3,3.77458196]
[1748533265427,0.9502,2649.8,2649.6,3.77407876]
[1748533265725,5.0192,2649.8,2649.6,3.77407876]
[1748533266089,4.068,2649.7,2649.6,3.77407876]
[1748533266491,4.068,2649.7,2649.4,3.77443011]
[1748533267027,4.068,2649.7,2649.0,3.77488395]
[1748533267028,4.068,2649.7,2649.5,3.77428917]
[1748533267189,4.068,2649.7,2649.4,4.14926514]
[1748533267390,4.068,2649.7,2649.5,3.77428706]
[1748533267820,4.068,2649.7,2649.5,3.77423146]
[1748533268059,4.068,2649.7,2649.4,4.14926447]
[1748533268332,0.50182,2649.6,2649.4,4.14926447]
[1748533268547,4.068,2649.7,2649.4,4.14926447]
[1748533268845,1.30698735,2649.6,2649.4,0.37490519]
[1748533268994,0.9518,2649.6,2649.4,0.37490519]
[1748533269740,0.35522054,2649.5,2649.4,0.37490519]
[1748533271009,0.9518,2649.6,2649.4,0.37490519]
[1748533272137,0.9725,2649.8,2649.5,3.77423218]
[1748533272297,4.41262159,2649.7,2649.5,3.77423218]
[1748533272631,0.35562159,2649.6,2649.5,3.77423218]
[1748533273019,4.41162159,2649.6,2649.4,4.14930282]
[1748533273223,4.056,2649.6,2649.5,3.77429703]
[1748533273435,4.91458222,2649.6,2649.4,0.37490519]
[1748533273632,4.55885,2649.6,2649.4,0.37490519]
[1748533273820,0.355744,2649.5,2649.4,0.37490519]
[1748533274840,0.355744,2649.5,2649.4,4.14934468]
[1748533275037,0.9725,2649.8,2649.4,4.14934468]
[1748533275038,0.02,2649.9,2649.8,3.77386972]
[1748533275337,0.37578785,2649.9,2649.8,3.77386972]
[1748533275534,4.42978785,2649.9,2649.8,3.77386972]
[1748533276110,0.34512901,2650.2,2649.8,0.79888623]
[1748533276306,0.34512901,2650.2,2649.4,2.27318912]
[1748533276307,0.9535,2650.1,2649.6,3.77410531]
[1748533276513,4.39712901,2650.2,2649.9,3.77363819]
[1748533277157,4.39712901,2650.2,2650.1,3.77344251]
[1748533277312,4.40512901,2650.2,2649.6,3.77410051]
[1748533277510,4.40512901,2650.2,2650.1,3.77344251]
[1748533277911,4.40412901,2650.2,2650.1,3.77344251]
[1748533279132,0.34512901,2650.2,2650.1,3.77344251]
[1748533279368,4.40112901,2650.2,2650.1,3.77344251]
[1748533280640,4.39812901,2650.2,2650.1,3.77344251]
[1748533280848,4.39812901,2650.2,2649.5,0.23498576]
[1748533281041,4.39812901,2650.2,2650.1,3.77344251]
[1748533281555,4.39812901,2650.2,2650.0,3.77347115]
[1748533281755,4.39812901,2650.2,2650.1,3.77344251]
[1748533282273,4.39812901,2650.2,2649.5,1.67341767]
[1748533282473,4.39812901,2650.2,2649.9,3.77362337]
[1748533282663,4.39812901,2650.2,2650.0,3.77357162]
[1748533282822,4.39812901,2650.2,2649.9,3.77361691]
[1748533283022,4.39812901,2650.2,2650.0,3.773582]
[1748533283660,4.39812901,2650.2,2650.1,3.77344251]
[1748533284251,4.39812901,2650.2,2649.9,3.77369425]
[1748533284432,4.39812901,2650.2,2650.0,3.77350198]
[1748533284632,1.0019,2650.1,2649.8,3.77379708]
[1748533284866,1.0019,2650.1,2649.4,0.37490519]
[1748533285169,4.39812901,2650.2,2650.1,3.77344251]
[1748533285974,4.39212901,2650.2,2650.1,3.77344251]
[1748533287743,4.39212901,2650.2,2650.0,3.77350876]
[1748533288380,4.39212901,2650.2,2649.9,3.77366477]
[1748533288575,0.9935,2650.0,2649.5,3.81832379]
[1748533288874,0.9935,2650.0,2649.4,0.37490519]
[1748533289647,0.9935,2650.0,2649.5,3.7741824]
[1748533289850,0.9935,2650.0,2649.4,4.14931614]
[1748533290167,0.9935,2650.0,2649.5,3.77421277]
[1748533290552,0.35452548,2649.9,2649.4,4.14928186]
[1748533290764,0.9935,2650.0,2649.4,4.14928186]
[1748533290964,0.3545424,2649.9,2649.4,4.14928186]
[1748533291158,0.9935,2650.0,2649.4,4.14928186]
[1748533291392,0.35453644,2649.9,2649.4,0.37490519]
[1748533291691,4.041,2649.9,2649.4,0.37490519]
[1748533292187,4.041,2649.9,2649.5,3.77422356]
[1748533292777,4.041,2649.9,2649.4,4.14930676]
[1748533293100,4.041,2649.9,2649.4,0.37490519]
[1748533293297,0.8808176,2649.8,2649.4,0.37490519]
[1748533293497,0.9529,2649.7,2649.4,0.37490519]
[1748533296303,0.8808176,2649.8,2648.4,3.77586467]
[1748533296304,0.9229,2649.5,2648.4,3.77586467]
[1748533296608,0.9229,2649.5,2648.2,12.189619]
[1748533296609,4.039,2649.4,2648.8,3.77515867]
[1748533296780,4.039,2649.4,2648.9,3.77508903]
[1748533297103,0.49619,2649.3,2648.9,3.77508903]
[1748533297304,0.49619,2649.3,2648.8,3.77521293]
[1748533297469,0.49619,2649.3,2649.0,3.77500376]
[1748533297664,0.49619,2649.3,2649.1,3.77481578]
[1748533297863,4.039,2649.4,2648.3,3.77600724]
[1748533298089,4.039,2649.4,2649.0,3.77500928]
[1748533298299,4.039,2649.4,2648.9,3.77508227]
[1748533299172,4.039,2649.4,2648.8,3.77520486]
[1748533299372,4.91260733,2649.4,2648.8,3.77520486]
[1748533300110,3.77465034,2649.3,2648.2,3.77614983]
[1748533300407,3.77465034,2649.3,2648.6,3.7755687]
[1748533300408,0.9492,2649.2,2648.6,3.7755687]
[1748533300611,0.87360733,2649.4,2648.3,10.0]
[1748533300813,0.9492,2649.3,2648.5,3.7757221]
[1748533301012,4.032,2649.2,2648.8,3.77515469]
[1748533301224,4.032,2649.2,2648.9,3.77514925]
[1748533301528,4.032,2649.2,2648.7,3.77539201]
[1748533302014,4.032,2649.2,2648.4,5.15347169]
[1748533302015,4.032,2649.2,2648.9,3.77501516]
[1748533302227,0.984,2649.7,2648.9,4.53017369]
[1748533302424,0.984,2649.7,2649.5,3.77426775]
[1748533302574,0.984,2650.0,2649.6,3.77411145]
[1748533302779,0.984,2650.0,2649.4,0.37745674]
[1748533303014,0.984,2650.0,2649.1,10.0]
[1748533303192,4.031,2649.9,2649.2,1.0]
[1748533303394,0.984,2650.0,2648.9,0.75502676]
[1748533303592,4.03,2649.8,2649.5,3.77418294]
[1748533304226,4.03,2649.8,2649.5,3.77422253]
[1748533304529,4.03,2649.8,2648.9,0.75502676]
[1748533304732,0.984,2650.0,2649.3,3.77457742]
[1748533305022,4.033,2649.7,2649.4,3.77442856]
[1748533305326,4.033,2649.7,2648.7,1.89823293]
[1748533305327,0.9729,2649.6,2648.7,1.89823293]
[1748533305619,0.9729,2649.6,2649.1,3.77478739]
[1748533305823,0.9729,2649.6,2649.1,3.77476333]
[1748533306388,0.9729,2649.6,2649.0,3.77497094]
[1748533306593,0.9729,2649.6,2648.9,3.77504838]
[1748533306899,0.9729,2649.6,2648.4,1.37761498]
[1748533306900,4.72116752,2649.4,2648.6,3.77548123]
[1748533307099,0.35366812,2649.3,2648.6,3.77548123]
[1748533307327,4.037,2649.2,2648.6,3.77548123]
[1748533307704,4.037,2649.2,2648.5,3.77565578]
[1748533307900,0.9467,2649.1,2648.1,3.98929721]
[1748533308101,0.9467,2649.1,2648.5,3.77566646]
[1748533308509,0.9467,2649.1,2648.6,3.77556036]
[1748533308828,0.9467,2649.1,2648.2,0.62592592]
[1748533308829,0.9467,2649.1,2648.7,3.77543398]
[1748533309234,0.9467,2649.1,2648.7,3.775437]
[1748533309533,0.9467,2649.1,2648.6,3.77555271]
[1748533309534,0.9467,2649.1,2648.8,3.77528691]
[1748533310031,0.9467,2649.1,2648.7,3.77536908]
[1748533310389,0.9467,2649.1,2648.7,3.7753715]
[1748533310991,4.029,2649.0,2648.7,3.7753715]
[1748533311217,4.029,2649.0,2648.8,3.77528944]
[1748533311620,0.9467,2649.1,2648.8,3.77528944]
[1748533311800,4.027,2649.0,2648.8,3.77528944]
[1748533312220,4.027,2649.0,2648.7,3.7753625]
[1748533313700,4.027,2649.0,2648.2,0.62592592]
[1748533313898,4.027,2649.0,2648.5,3.77565577]
[1748533314435,4.027,2649.0,2648.5,3.77570996]
[1748533314611,4.027,2649.0,2648.4,3.77577715]
[1748533314808,4.027,2649.0,2648.5,3.77570552]
[1748533315626,0.9467,2649.1,2648.7,3.77539934]
[1748533315862,4.022,2648.9,2648.7,3.77539934]
[1748533316435,4.022,2648.9,2648.6,3.77550697]
[1748533316734,4.022,2648.9,2648.5,3.77567699]
[1748533316932,4.022,2648.9,2648.5,4.53082732]
[1748533317134,4.022,2648.9,2648.6,3.77557829]
[1748533317336,4.022,2648.9,2648.5,4.53080798]
[1748533317561,4.022,2648.9,2648.6,3.7755148]
[1748533318239,4.022,2648.9,2648.5,4.53079562]
[1748533318464,4.022,2648.9,2648.6,3.77556826]
[1748533318850,4.022,2648.9,2648.5,4.53079284]
[1748533319168,4.022,2648.9,2648.6,3.77556327]
[1748533319744,4.022,2648.9,2648.5,4.53084189]
[1748533319944,4.022,2648.9,2648.6,3.77549161]
[1748533321504,4.022,2648.9,2648.7,3.77541832]
[1748533322040,4.022,2648.9,2648.3,3.77600724]
[1748533322194,4.022,2648.9,2648.5,3.77564197]
[1748533322497,4.022,2648.9,2648.1,0.0088596]
[1748533322498,4.71917901,2648.8,2648.1,0.0088596]
[1748533322651,4.51887,2648.9,2648.1,0.0088596]
[1748533322852,3.77580627,2648.5,2648.1,0.0088596]
[1748533323083,0.9881,2648.3,2648.1,0.0088596]
[1748533325011,4.012,2648.2,2648.1,0.0088596]
[1748533325674,5.48641,2648.2,2648.1,0.0088596]
[1748533326621,5.48741,2648.2,2648.1,0.0088596]
[1748533327105,9.26355983,2648.2,2648.1,0.0088596]
[1748533327614,10.16665246,2648.2,2648.1,0.0088596]
[1748533327913,0.954,2647.7,2647.1,0.02]
[1748533328063,3.77684845,2647.8,2647.4,0.37632763]
[1748533328064,7.78910328,2647.6,2647.4,0.37632763]
[1748533328266,0.954,2647.5,2647.1,0.02]
[1748533329563,0.55,2647.4,2647.1,0.02]
[1748533329872,4.7703763,2647.2,2647.1,0.02]
[1748533330478,5.3203763,2647.2,2647.1,0.02]
[1748533330678,6.2851581,2647.2,2647.1,0.02]
[1748533331308,14.2851581,2647.2,2647.1,0.02]
[1748533331470,0.9314,2646.8,2646.1,0.02]
[1748533331814,4.013,2646.7,2646.2,3.77895968]
[1748533331991,4.012,2646.6,2646.5,3.77857547]
[1748533332197,0.9314,2646.8,2646.6,3.77834875]
[1748533332384,0.9314,2646.8,2646.7,3.77828994]
[1748533332582,4.014,2646.8,2646.7,3.77828994]
[1748533332781,4.014,2646.8,2646.4,3.77862825]
[1748533332980,4.014,2646.8,2646.5,3.77845507]
[1748533333187,4.32846778,2646.6,2645.8,4.14939338]
[1748533333494,0.9205,2646.4,2645.6,3.77975009]
[1748533333695,0.9205,2646.4,2645.7,3.77967529]
[1748533333917,0.9205,2646.4,2645.2,3.78037566]
[1748533333918,0.9205,2646.2,2645.4,3.78008807]
[1748533334068,0.9205,2646.2,2645.4,3.78001136]
[1748533334276,4.70648237,2646.1,2645.4,0.38161219]
[1748533334486,0.9205,2646.0,2645.1,0.02]
[1748533334685,4.023,2645.9,2645.1,0.02]
[1748533334900,4.023,2645.9,2645.4,3.78000498]
[1748533335173,4.70064666,2645.4,2645.3,0.37349037]
[1748533335387,4.9515,2645.4,2645.3,0.37349037]
[1748533335715,4.035,2645.4,2645.3,0.37349037]
[1748533335868,4.035,2645.4,2645.3,4.15377994]
[1748533336214,0.9205,2645.7,2645.6,3.7798609]
[1748533336383,4.04,2645.7,2645.6,3.7798609]
[1748533337207,4.04,2645.7,2645.3,0.79541968]
[1748533337508,4.04,2645.7,2645.4,3.780096]
[1748533337695,4.044,2645.7,2645.6,3.7798609]
[1748533337894,1.104,2646.2,2645.4,3.78010893]
[1748533337895,0.9615,2646.2,2646.1,3.77914666]
[1748533338209,5.0065,2646.2,2646.1,3.77914666]
[1748533338508,0.9615,2646.7,2646.1,0.37768349]
[1748533338669,3.33191937,2647.0,2646.6,3.7784327]
[1748533338865,3.39977375,2647.5,2646.1,0.4156972]
[1748533338866,0.9615,2647.1,2646.4,3.7786455]
[1748533339096,4.36127375,2647.5,2647.0,3.77786173]
[1748533339266,3.25727375,2647.5,2647.0,3.77786173]
[1748533339467,3.25727375,2647.5,2647.4,3.77729092]
[1748533339875,3.25727375,2647.5,2646.5,1.89823293]
[1748533339876,2.29577375,2647.5,2647.3,3.77738341]
[1748533340071,2.29577375,2647.5,2647.4,3.77729092]
[1748533340295,6.34077375,2647.5,2647.4,3.77729092]
[1748533340505,2.29577375,2647.5,2647.4,3.77729092]
[1748533341887,0.02,2647.9,2647.4,4.53276306]
[1748533342090,0.02,2647.9,2647.8,3.77672029]
[1748533345901,0.02,2647.9,2647.8,3.97044598]
[1748533349451,0.02,2647.9,2647.8,3.77672029]
[1748533350451,0.02,2647.9,2647.8,3.96872686]
[1748533355821,0.02,2647.9,2647.8,4.74328493]
[1748533356326,0.02,2647.9,2647.8,3.96872686]
[1748533357255,0.02,2647.9,2647.8,3.77672029]
[1748533358171,4.035,2647.9,2647.7,3.77685479]
[1748533358332,4.035,2647.9,2647.8,3.77672029]
[1748533359839,0.02,2647.9,2647.8,3.77672029]
[1748533360666,0.02,2647.9,2647.8,4.55747604]
[1748533361332,0.02,2647.9,2647.8,4.53207604]
[1748533361526,0.02,2647.9,2647.8,3.77672029]
[1748533365438,0.02,2647.9,2647.6,10.0]
[1748533365639,0.02,2647.9,2647.8,3.77672029]
[1748533366336,0.02,2647.9,2647.8,3.80212029]
[1748533367630,0.02,2647.9,2647.8,5.70035322]
[1748533367834,0.02,2647.9,2647.8,4.72443934]
[1748533368569,0.02,2647.9,2647.8,3.77672029]
[1748533372135,0.44257851,2648.6,2648.3,3.77600415]
[1748533372335,4.36370543,2648.5,2648.3,3.77594325]
[1748533372549,0.35571408,2648.4,2648.3,3.77594325]
[1748533373179,0.35571408,2648.4,2648.2,3.77607612]
[1748533373339,1.4217426,2648.7,2647.6,0.0254]
[1748533373340,1.4217426,2648.7,2648.4,3.775771]
[1748533373539,0.35577488,2648.6,2648.5,3.77558722]
[1748533373861,4.36377488,2648.6,2648.5,3.77558722]
[1748533374437,4.36377488,2648.6,2648.4,3.77579827]
[1748533374736,4.008,2648.6,2648.5,3.7757221]
[1748533374935,4.36374894,2648.6,2648.5,3.7757221]
[1748533375380,4.008,2648.6,2648.5,3.7757221]
[1748533375542,4.008,2648.6,2648.5,4.15701309]
[1748533375742,0.9771,2648.7,2648.6,3.77557955]
[1748533376038,5.34067265,2648.7,2648.6,3.77557955]
[1748533376378,0.02,2648.9,2648.7,3.77529636]
[1748533376379,1.0381,2648.9,2648.7,3.77529636]
[1748533376541,4.008,2648.8,2648.7,3.77529636]
[1748533377638,1.0381,2648.9,2648.8,3.77529447]
[1748533377835,4.028,2648.9,2648.8,3.77529447]
[1748533378377,0.02,2648.9,2648.8,6.42858648]
[1748533378879,0.02,2648.9,2648.8,10.61263848]
[1748533379047,0.02,2648.9,2648.8,8.87194848]
[1748533379573,0.02,2649.9,2649.3,3.77458133]
[1748533379747,4.008,2649.6,2649.5,3.77429703]
[1748533381542,4.008,2649.6,2649.4,3.77439225]
[1748533381739,4.008,2649.6,2649.5,3.77429703]
[1748533381740,0.4008,2649.6,2649.5,3.77429703]
[1748533381974,0.02,2649.9,2649.8,3.77386972]
[1748533382988,0.02,2650.9,2650.3,3.77315775]
[1748533383176,4.007,2650.8,2650.7,3.77258837]
[1748533384174,0.02,2650.9,2650.8,3.77244605]
[1748533384480,4.027,2650.9,2650.8,3.77244605]
[1748533385057,0.02,2650.9,2650.8,3.77244605]
[1748533385371,4.026,2650.9,2650.8,3.77244605]
[1748533386885,0.02,2650.9,2650.7,0.38408571]
[1748533387096,4.026,2650.9,2649.8,3.7738576]
[1748533387386,4.026,2650.9,2650.1,3.77341651]
[1748533387387,1.0,2650.7,2650.1,3.77341651]
[1748533387683,1.0,2650.7,2650.1,3.77335799]
[1748533387886,1.0,2650.7,2649.8,0.0356]
[1748533388089,1.0,2650.7,2650.0,3.77357044]
[1748533388265,0.47724761,2650.6,2649.8,0.0356]
[1748533388465,1.0,2650.7,2650.3,3.7730643]
[1748533388773,0.02,2650.9,2650.3,3.77307933]
[1748533388976,0.9264,2650.7,2649.8,0.41120721]
[1748533389150,4.006,2650.7,2649.8,0.41120721]
[1748533389352,4.006,2650.7,2650.3,3.77307224]
[1748533389546,4.006,2650.7,2649.8,0.41120721]
[1748533389547,0.4006,2650.6,2650.5,3.77287304]
[1748533389752,4.006,2650.7,2650.0,1.89823293]
[1748533390058,4.006,2650.7,2650.6,3.7727307]
[1748533390277,4.006,2650.8,2650.7,3.77252993]
[1748533390593,0.02,2650.9,2650.8,3.77244605]
[1748533395191,0.02,2650.9,2650.8,4.52694747]
[1748533395395,0.02,2650.9,2650.8,6.4607804]
[1748533395726,0.02,2650.9,2650.8,4.56254747]
[1748533395927,0.02,2650.9,2650.8,6.4607804]
[1748533396340,1.0194,2651.7,2651.6,3.77130788]
[1748533396489,2.24552115,2651.8,2651.7,3.77116566]
[1748533397794,2.24552115,2651.8,2651.7,4.52541072]
[1748533397988,2.24552115,2651.8,2651.7,4.71586105]
[1748533398429,0.66666667,2652.2,2651.8,0.0356]
[1748533398729,0.66666667,2652.2,2651.8,4.18090237]
[1748533398900,0.66666667,2652.2,2651.8,5.22765158]
[1748533399614,4.004,2652.0,2651.3,0.22879967]
[1748533399814,4.004,2652.0,2651.1,11.89823293]
[1748533400015,1.008,2651.8,2651.4,3.77150232]
[1748533400203,1.008,2651.8,2651.1,1.89823293]
[1748533400204,1.008,2651.8,2651.3,10.0]
[1748533400402,1.008,2651.8,2651.4,3.77154535]
[1748533401004,4.004,2651.7,2651.4,3.77152847]
[1748533401625,4.004,2651.7,2651.3,3.77169441]
[1748533401829,4.004,2651.7,2651.3,4.15806923]
[1748533402130,4.004,2651.7,2651.3,4.15808729]
[1748533402432,4.004,2651.7,2651.4,3.77159206]
[1748533403203,4.004,2651.7,2651.5,3.77143962]
[1748533403404,4.004,2651.7,2651.3,0.38641932]
[1748533403607,4.5072,2651.7,2651.2,3.77176907]
[1748533403935,4.5072,2651.7,2651.2,0.37695584]
[1748533403936,0.9348,2651.6,2651.2,0.37695584]
[1748533404250,0.9348,2651.6,2651.0,3.77215102]
[1748533405096,0.9348,2651.6,2651.1,3.77201797]
[1748533405296,1.479,2651.6,2651.0,3.77209847]
[1748533405915,1.479,2651.6,2651.1,3.77198152]
[1748533406118,1.479,2651.6,2651.0,3.77214573]
[1748533406629,1.479,2651.6,2651.1,3.77189991]
[1748533406803,0.35334297,2651.5,2651.1,3.77189991]
[1748533407005,1.479,2651.6,2651.1,3.77189991]
[1748533407219,0.35329215,2651.5,2651.2,3.77186386]
[1748533407423,1.479,2651.6,2651.2,3.77186386]
[1748533407756,0.35333275,2651.5,2651.2,3.77186386]
[1748533407960,4.35633275,2651.4,2651.3,3.77172069]
[1748533408305,4.35666724,2651.4,2651.2,3.77180404]
[1748533408505,4.003,2651.4,2651.2,3.77180404]
[1748533408707,0.35389246,2651.3,2651.2,3.77180404]
[1748533409013,0.35389246,2651.3,2650.6,0.38209618]
[1748533409349,0.9882,2651.1,2650.6,3.77265865]
[1748533409513,0.9882,2651.1,2650.8,3.77243376]
[1748533409828,0.9882,2651.1,2650.6,3.77265865]
[1748533409997,0.9882,2651.1,2650.8,3.77243324]
[1748533410400,0.9882,2651.1,2650.9,3.77228246]
[1748533411042,5.008,2651.4,2651.1,3.77196442]
[1748533411209,4.35675862,2651.3,2651.0,3.77209228]
[1748533411405,0.35375862,2651.2,2651.0,3.77209228]
[1748533411731,0.35375862,2651.1,2651.0,3.77209228]
[1748533412560,4.003,2651.3,2651.0,3.77209228]
[1748533412858,0.35427221,2651.2,2651.1,3.77201916]
[1748533413303,0.35427221,2651.2,2650.9,3.77228561]
[1748533413629,4.003,2651.3,2651.0,3.77209685]
[1748533413803,0.35429805,2651.2,2651.0,3.77209685]
[1748533414002,0.35429805,2651.2,2650.6,6.05075421]
[1748533414003,0.35429805,2651.1,2650.6,2.27804085]
[1748533414202,0.35429805,2651.0,2650.9,3.77230374]
[1748533415039,0.35429805,2651.0,2650.8,3.77237265]
[1748533415237,4.003,2651.3,2650.9,3.77228446]
[1748533415440,0.35400773,2651.2,2650.6,2.88669396]
[1748533415599,0.35400773,2651.1,2650.9,3.77230218]
[1748533415803,0.35400773,2651.0,2650.9,3.77230218]
[1748533417045,4.003,2651.3,2651.1,3.77199347]
[1748533417246,4.003,2651.3,2650.6,6.6594172]
[1748533417247,0.35387295,2651.2,2650.9,3.77227017]
[1748533417403,4.003,2651.3,2650.8,3.77243283]
[1748533417404,0.35387295,2651.1,2650.8,3.77243283]
[1748533417604,0.35387295,2651.0,2650.9,3.77230374]
[1748533419203,0.35404485,2651.0,2650.9,3.77230374]
[1748533419842,4.003,2651.1,2651.0,3.77216144]
[1748533420040,4.35713879,2651.1,2651.0,3.77216144]
[1748533420741,0.35413879,2651.1,2651.0,3.77216144]
[1748533421147,0.3542227,2651.1,2651.0,3.77216144]
[1748533422228,0.3542227,2651.1,2650.9,3.7722809]
[1748533422444,0.3542227,2651.0,2650.9,3.7722809]
[1748533422642,4.003,2651.2,2650.9,3.7721897]
[1748533422842,0.35434385,2651.1,2650.9,3.7721897]
[1748533423030,4.003,2651.2,2650.9,3.7721897]
[1748533423031,0.35434385,2651.0,2650.9,3.7721897]
[1748533423631,0.35434385,2651.0,2650.7,5.30305211]
[1748533423835,4.003,2651.2,2650.8,3.7723501]
[1748533424043,0.3543568,2651.1,2650.8,3.7723501]
[1748533424239,4.003,2651.2,2650.8,3.7723501]
[1748533424422,0.3543376,2651.1,2650.8,3.7723501]
[1748533424751,4.003,2651.2,2650.8,3.7723501]
[1748533424953,0.35433434,2651.1,2650.9,3.77228365]
[1748533425152,4.003,2651.2,2650.9,3.77228365]
[1748533425464,0.35431239,2651.1,2650.9,3.77228365]
[1748533425758,4.003,2651.2,2650.9,3.77228365]
[1748533425958,0.35431111,2651.1,2650.9,3.77228365]
[1748533426161,4.003,2651.2,2650.7,1.53051485]
[1748533426461,4.003,2651.2,2650.9,3.77226657]
[1748533426462,0.35446325,2651.1,2650.9,3.77226657]
[1748533426661,4.003,2651.2,2650.9,3.77226657]
[1748533427162,0.35452488,2651.1,2650.8,3.77235506]
[1748533427481,4.003,2651.2,2650.6,4.15468169]
[1748533427683,0.35463198,2651.1,2650.6,4.15468169]
[1748533427827,4.003,2651.2,2650.7,3.77257039]
[1748533428031,0.35468403,2651.1,2650.7,3.77257039]
[1748533428250,0.35478365,2651.0,2650.7,3.77257039]
[1748533428450,4.5038,2651.2,2650.7,3.77257039]
[1748533428651,1.44820191,2651.4,2650.6,3.77270372]
[1748533428652,4.35676969,2651.1,2650.6,3.77270372]
[1748533428851,0.35476969,2651.0,2650.6,4.15092738]
[1748533429073,4.002,2651.1,2650.6,4.15092738]
[1748533429230,0.35502281,2651.0,2650.6,4.15092738]